[Event "Titled Tuesday Blitz February 07 Late 2023"]
[White "Figorito, Nick"]
[Black "Aggelis, Nikolaos"]
[WhiteFideId "30923689"]
[BlackFideId "4213220"]
[WhiteElo "2036"]
[BlackElo "2270"]
[Result "0-1"]
[Round "05"]
[TimeControl "180+2"]
[Date "2023.02.07"]
[WhiteClock "0:00:44"]
[BlackClock "0:02:15"]

1. Nf3 {[%clk 0:03:00]}  Nf6 {[%clk 0:02:58]} 2. g3 {[%clk 0:03:01]}  g6 {[%clk 0:02:58]} 3. Bg2 {[%clk 0:03:01]}  Bg7 {[%clk 0:02:59]} 4. O-O {[%clk 0:03:02]}  O-O {[%clk 0:02:59]} 5. c4 {[%clk 0:03:03]}  d5 {[%clk 0:03:00]} 6. cxd5 {[%clk 0:03:02]}  Nxd5 {[%clk 0:03:00]} 7. Nc3 {[%clk 0:03:03]}  Nxc3 {[%clk 0:03:01]} 8. bxc3 {[%clk 0:03:03]}  c5 {[%clk 0:03:00]} 9. d4 {[%clk 0:03:03]}  Nc6 {[%clk 0:03:01]} 10. e3 {[%clk 0:02:57]}  Qc7 {[%clk 0:03:01]} 11. a4 {[%clk 0:02:54]}  Rd8 {[%clk 0:03:00]} 12. Qb3 {[%clk 0:02:39]}  b6 {[%clk 0:03:00]} 13. Ng5 {[%clk 0:02:17]}  e6 {[%clk 0:02:57]} 14. Ba3 {[%clk 0:02:10]}  Na5 {[%clk 0:02:57]} 15. Qa2 {[%clk 0:01:57]}  Bb7 {[%clk 0:02:56]} 16. Bxb7 {[%clk 0:01:51]}  Nxb7 {[%clk 0:02:56]} 17. Nf3 {[%clk 0:01:45]}  Qc6 {[%clk 0:02:50]} 18. Ne5 {[%clk 0:01:29]}  Bxe5 {[%clk 0:02:49]} 19. dxe5 {[%clk 0:01:30]}  Qe4 {[%clk 0:02:48]} 20. c4 {[%clk 0:01:26]}  Na5 {[%clk 0:02:47]} 21. Rac1 {[%clk 0:01:24]}  Rd3 {[%clk 0:02:43]} 22. Qb1 {[%clk 0:01:19]}  Rad8 {[%clk 0:02:42]} 23. Qb5 {[%clk 0:01:10]}  Rxa3 {[%clk 0:02:39]} 24. Rcd1 {[%clk 0:01:00]}  Rad3 {[%clk 0:02:37]} 25. Rxd3 {[%clk 0:01:00]}  Qxd3 {[%clk 0:02:38]} 26. h4 {[%clk 0:00:56]}  Qxc4 {[%clk 0:02:35]} 27. Qb1 {[%clk 0:00:54]}  h5 {[%clk 0:02:30]} 28. Rd1 {[%clk 0:00:53]}  Rd5 {[%clk 0:02:28]} 29. Rxd5 {[%clk 0:00:52]}  Qxd5 {[%clk 0:02:28]} 30. Qb5 {[%clk 0:00:52]}  Qxe5 {[%clk 0:02:26]} 31. Qe8+ {[%clk 0:00:50]}  Kg7 {[%clk 0:02:26]} 32. Qe7 {[%clk 0:00:51]}  c4 {[%clk 0:02:22]} 33. Qxa7 {[%clk 0:00:50]}  Qc5 {[%clk 0:02:20]} 34. Qd7 {[%clk 0:00:43]}  c3 {[%clk 0:02:20]} 35. Qd1 {[%clk 0:00:44]}  c2 {[%clk 0:02:20]} 36. Qa1+ {[%clk 0:00:45]}  f6 {[%clk 0:02:15]} 37. Qc1 {[%clk 0:00:44]}  Nb3 {[%clk 0:02:15]} 0-1


[Site "https://www.chess.com"]

[Event "Titled Tuesday Blitz February 07 Late 2023"]
[White "Sarkar, Justin"]
[Black "Maltsevskaya, Aleksandra"]
[WhiteFideId "2010011"]
[BlackFideId "24174041"]
[WhiteElo "2309"]
[BlackElo "2390"]
[Result "1-0"]
[Round "05"]
[TimeControl "180+2"]
[Date "2023.02.07"]
[WhiteClock "0:00:31"]
[BlackClock "0:00:16"]

1. d4 {[%clk 0:02:43]}  c5 {[%clk 0:03:00]} 2. d5 {[%clk 0:02:39]}  e6 {[%clk 0:03:01]} 3. Nc3 {[%clk 0:02:38]}  Nf6 {[%clk 0:03:00]} 4. e4 {[%clk 0:02:35]}  exd5 {[%clk 0:03:01]} 5. e5 {[%clk 0:02:33]}  Ng8 {[%clk 0:02:48]} 6. Nxd5 {[%clk 0:02:29]}  Nc6 {[%clk 0:02:49]} 7. Nf3 {[%clk 0:02:28]}  d6 {[%clk 0:02:48]} 8. Bg5 {[%clk 0:02:22]}  Qa5+ {[%clk 0:02:33]} 9. Qd2 {[%clk 0:02:09]}  Nb4 {[%clk 0:02:28]} 10. Bb5+ {[%clk 0:01:38]}  Bd7 {[%clk 0:02:26]} 11. Bxd7+ {[%clk 0:01:37]}  Kxd7 {[%clk 0:02:27]} 12. O-O {[%clk 0:01:36]}  Nc6 {[%clk 0:02:20]} 13. Qd3 {[%clk 0:01:33]}  g6 {[%clk 0:01:23]} 14. exd6 {[%clk 0:01:29]}  Bg7 {[%clk 0:01:16]} 15. Rad1 {[%clk 0:01:22]}  Re8 {[%clk 0:01:08]} 16. c3 {[%clk 0:01:11]}  Qa6 {[%clk 0:01:01]} 17. Qxa6 {[%clk 0:00:59]}  bxa6 {[%clk 0:01:02]} 18. Nc7 {[%clk 0:00:59]}  Rb8 {[%clk 0:00:32]} 19. Nxa6 {[%clk 0:00:58]}  Rb5 {[%clk 0:00:32]} 20. Be3 {[%clk 0:00:43]}  Nf6 {[%clk 0:00:25]} 21. Nxc5+ {[%clk 0:00:40]}  Kd8 {[%clk 0:00:25]} 22. b4 {[%clk 0:00:37]}  h6 {[%clk 0:00:22]} 23. a4 {[%clk 0:00:36]}  Rb8 {[%clk 0:00:22]} 24. b5 {[%clk 0:00:33]}  Na5 {[%clk 0:00:19]} 25. Ne5 {[%clk 0:00:33]}  Rf8 {[%clk 0:00:16]} 26. Nc6+ {[%clk 0:00:31]} 1-0


[Site "https://www.chess.com"]

[Event "Titled Tuesday Blitz February 07 Late 2023"]
[White "Defend, Balint"]
[Black "Rottenwohrer Suarez, Juan"]
[WhiteFideId "17004853"]
[BlackFideId "32068182"]
[WhiteElo "1673"]
[BlackElo "2265"]
[Result "0-1"]
[Round "05"]
[TimeControl "180+2"]
[Date "2023.02.07"]
[WhiteClock "0:01:31"]
[BlackClock "0:01:06"]

1. e4 {[%clk 0:02:57]}  c5 {[%clk 0:02:50]} 2. Nf3 {[%clk 0:02:57]}  g6 {[%clk 0:02:50]} 3. c4 {[%clk 0:02:54]}  Nc6 {[%clk 0:02:48]} 4. d4 {[%clk 0:02:53]}  cxd4 {[%clk 0:02:49]} 5. Nxd4 {[%clk 0:02:54]}  Nf6 {[%clk 0:02:50]} 6. Nc3 {[%clk 0:02:53]}  d6 {[%clk 0:02:50]} 7. Be3 {[%clk 0:02:53]}  Ng4 {[%clk 0:02:50]} 8. Bf4 {[%clk 0:02:44]}  Nxd4 {[%clk 0:02:30]} 9. Qxd4 {[%clk 0:02:41]}  e5 {[%clk 0:02:30]} 10. Bxe5 {[%clk 0:02:38]}  dxe5 {[%clk 0:02:26]} 11. Qxd8+ {[%clk 0:02:35]}  Kxd8 {[%clk 0:02:27]} 12. f3 {[%clk 0:02:30]}  Ne3 {[%clk 0:02:19]} 13. Bd3 {[%clk 0:02:28]}  Nxg2+ {[%clk 0:02:17]} 14. Kf2 {[%clk 0:02:27]}  Nf4 {[%clk 0:02:18]} 15. Bc2 {[%clk 0:02:27]}  Bc5+ {[%clk 0:02:15]} 16. Kg3 {[%clk 0:02:27]}  Be6 {[%clk 0:02:09]} 17. Nd5 {[%clk 0:02:25]}  Bxd5 {[%clk 0:01:56]} 18. cxd5 {[%clk 0:02:23]}  Bd4 {[%clk 0:01:50]} 19. Rhd1 {[%clk 0:02:18]}  Rc8 {[%clk 0:01:42]} 20. Ba4 {[%clk 0:02:17]}  a6 {[%clk 0:01:40]} 21. Rab1 {[%clk 0:02:08]}  h5 {[%clk 0:01:34]} 22. h4 {[%clk 0:02:08]}  Ke7 {[%clk 0:01:23]} 23. d6+ {[%clk 0:01:48]}  Kf6 {[%clk 0:01:20]} 24. d7 {[%clk 0:01:45]}  Rcd8 {[%clk 0:01:17]} 25. Bb3 {[%clk 0:01:31]}  Rxd7 {[%clk 0:01:14]} 26. Rbc1 {[%clk 0:01:31]}  Ne2+ {[%clk 0:01:06]} 0-1


[Site "https://www.chess.com"]

[Event "Titled Tuesday Blitz February 07 Late 2023"]
[White "Tyagi, Kushan"]
[Black "Gurevich, Dmitry"]
[WhiteFideId "2040069"]
[BlackFideId "2000407"]
[WhiteElo "2060"]
[BlackElo "2393"]
[Result "0-1"]
[Round "05"]
[TimeControl "180+2"]
[Date "2023.02.07"]
[WhiteClock "0:00:04"]
[BlackClock "0:00:27"]

1. d4 {[%clk 0:03:00]}  Nf6 {[%clk 0:02:55]} 2. c4 {[%clk 0:03:00]}  a6 {[%clk 0:02:55]} 3. Nc3 {[%clk 0:02:58]}  c5 {[%clk 0:02:54]} 4. d5 {[%clk 0:02:57]}  b5 {[%clk 0:02:54]} 5. cxb5 {[%clk 0:02:57]}  axb5 {[%clk 0:02:54]} 6. Nxb5 {[%clk 0:02:57]}  Qa5+ {[%clk 0:02:53]} 7. Nc3 {[%clk 0:02:55]}  Bb7 {[%clk 0:02:53]} 8. Bd2 {[%clk 0:02:49]}  Qb6 {[%clk 0:02:52]} 9. e4 {[%clk 0:02:46]}  e6 {[%clk 0:02:49]} 10. dxe6 {[%clk 0:02:40]}  fxe6 {[%clk 0:02:48]} 11. Qc2 {[%clk 0:02:39]}  Nc6 {[%clk 0:02:46]} 12. Nf3 {[%clk 0:02:31]}  Nd4 {[%clk 0:02:45]} 13. Qb1 {[%clk 0:02:08]}  Be7 {[%clk 0:02:35]} 14. Bd3 {[%clk 0:02:07]}  Nxf3+ {[%clk 0:02:11]} 15. gxf3 {[%clk 0:02:08]}  Bd6 {[%clk 0:02:10]} 16. Rg1 {[%clk 0:02:02]}  O-O {[%clk 0:02:07]} 17. f4 {[%clk 0:01:41]}  c4 {[%clk 0:02:03]} 18. Bxc4 {[%clk 0:01:19]}  Bc5 {[%clk 0:01:57]} 19. Rg2 {[%clk 0:01:02]}  d5 {[%clk 0:01:54]} 20. Bd3 {[%clk 0:00:57]}  dxe4 {[%clk 0:01:38]} 21. Nxe4 {[%clk 0:00:56]}  Bxe4 {[%clk 0:01:33]} 22. Bxe4 {[%clk 0:00:56]}  Ra4 {[%clk 0:01:32]} 23. Bd3 {[%clk 0:00:49]}  Bb4 {[%clk 0:01:25]} 24. Qc2 {[%clk 0:00:44]}  Bxd2+ {[%clk 0:01:21]} 25. Qxd2 {[%clk 0:00:45]}  Rd4 {[%clk 0:01:18]} 26. Qc2 {[%clk 0:00:41]}  Qd6 {[%clk 0:01:06]} 27. Rd1 {[%clk 0:00:34]}  Rd8 {[%clk 0:00:57]} 28. Rg3 {[%clk 0:00:27]}  Qxf4 {[%clk 0:00:47]} 29. Kf1 {[%clk 0:00:24]}  Kh8 {[%clk 0:00:45]} 30. Qe2 {[%clk 0:00:18]}  e5 {[%clk 0:00:42]} 31. Kg1 {[%clk 0:00:16]}  e4 {[%clk 0:00:39]} 32. Bc2 {[%clk 0:00:15]}  Rxd1+ {[%clk 0:00:39]} 33. Bxd1 {[%clk 0:00:14]}  Qc1 {[%clk 0:00:38]} 34. Rc3 {[%clk 0:00:05]}  Rxd1+ {[%clk 0:00:30]} 35. Qxd1 {[%clk 0:00:06]}  Qxd1+ {[%clk 0:00:29]} 36. Kg2 {[%clk 0:00:06]}  h6 {[%clk 0:00:28]} 37. Rc8+ {[%clk 0:00:04]}  Kh7 {[%clk 0:00:27]} 0-1


[Site "https://www.chess.com"]

[Event "Titled Tuesday Blitz February 07 Late 2023"]
[White "Krallis, Christos"]
[Black "Battlecruiser_Operational"]
[WhiteFideId "4298896"]
[WhiteElo "2344"]
[BlackElo "2371"]
[Result "1-0"]
[Round "05"]
[TimeControl "180+2"]
[Date "2023.02.07"]
[WhiteClock "0:00:15"]
[BlackClock "0:00:10"]

1. e4 {[%clk 0:03:00]}  e6 {[%clk 0:02:59]} 2. d4 {[%clk 0:03:00]}  d5 {[%clk 0:02:59]} 3. Nd2 {[%clk 0:03:00]}  h6 {[%clk 0:02:58]} 4. Bd3 {[%clk 0:02:57]}  c5 {[%clk 0:02:56]} 5. dxc5 {[%clk 0:02:50]}  Bxc5 {[%clk 0:02:57]} 6. Ngf3 {[%clk 0:02:38]}  Nf6 {[%clk 0:02:56]} 7. Qe2 {[%clk 0:02:34]}  Nc6 {[%clk 0:02:54]} 8. c3 {[%clk 0:02:30]}  a6 {[%clk 0:02:46]} 9. O-O {[%clk 0:02:21]}  O-O {[%clk 0:02:44]} 10. h3 {[%clk 0:02:21]}  Qc7 {[%clk 0:02:43]} 11. Re1 {[%clk 0:02:10]}  Nh5 {[%clk 0:02:02]} 12. Nb3 {[%clk 0:02:07]}  Ng3 {[%clk 0:01:57]} 13. Qc2 {[%clk 0:01:58]}  dxe4 {[%clk 0:01:53]} 14. Nxc5 {[%clk 0:01:42]}  exd3 {[%clk 0:01:52]} 15. Nxd3 {[%clk 0:01:41]}  Nf5 {[%clk 0:01:50]} 16. Bf4 {[%clk 0:01:40]}  Qe7 {[%clk 0:01:34]} 17. Rad1 {[%clk 0:01:12]}  Bd7 {[%clk 0:01:28]} 18. Nde5 {[%clk 0:00:59]}  Nxe5 {[%clk 0:01:27]} 19. Nxe5 {[%clk 0:00:58]}  Rfd8 {[%clk 0:01:19]} 20. Nc4 {[%clk 0:00:48]}  Bc6 {[%clk 0:01:08]} 21. Rxd8+ {[%clk 0:00:41]}  Qxd8 {[%clk 0:01:09]} 22. Rd1 {[%clk 0:00:39]}  Qf6 {[%clk 0:01:05]} 23. Ne5 {[%clk 0:00:35]}  Bxg2 {[%clk 0:00:46]} 24. Ng4 {[%clk 0:00:28]}  Qg6 {[%clk 0:00:38]} 25. Ne5 {[%clk 0:00:26]}  Be4+ {[%clk 0:00:22]} 26. Nxg6 {[%clk 0:00:23]}  Bxc2 {[%clk 0:00:22]} 27. Rd2 {[%clk 0:00:23]}  Be4 {[%clk 0:00:16]} 28. Ne5 {[%clk 0:00:21]}  g5 {[%clk 0:00:14]} 29. Be3 {[%clk 0:00:20]}  Nh4 {[%clk 0:00:13]} 30. Rd7 {[%clk 0:00:19]}  Bd5 {[%clk 0:00:13]} 31. c4 {[%clk 0:00:19]}  Bc6 {[%clk 0:00:13]} 32. Nxc6 {[%clk 0:00:19]}  bxc6 {[%clk 0:00:14]} 33. Rc7 {[%clk 0:00:19]}  Rb8 {[%clk 0:00:13]} 34. b3 {[%clk 0:00:19]}  a5 {[%clk 0:00:13]} 35. Rxc6 {[%clk 0:00:18]}  a4 {[%clk 0:00:13]} 36. bxa4 {[%clk 0:00:18]}  Rb1+ {[%clk 0:00:13]} 37. Kh2 {[%clk 0:00:18]}  Ra1 {[%clk 0:00:13]} 38. a5 {[%clk 0:00:18]}  Rxa2 {[%clk 0:00:13]} 39. a6 {[%clk 0:00:19]}  Kh7 {[%clk 0:00:12]} 40. a7 {[%clk 0:00:19]}  Kg6 {[%clk 0:00:12]} 41. Rc8 {[%clk 0:00:19]}  Nf3+ {[%clk 0:00:11]} 42. Kg2 {[%clk 0:00:17]}  Nh4+ {[%clk 0:00:10]} 43. Kf1 {[%clk 0:00:17]}  Ra1+ {[%clk 0:00:10]} 44. Ke2 {[%clk 0:00:18]}  Ra2+ {[%clk 0:00:10]} 45. Kd3 {[%clk 0:00:18]}  Nf3 {[%clk 0:00:10]} 46. a8=Q {[%clk 0:00:15]}  Ne5+ {[%clk 0:00:10]} 47. Kc3 {[%clk 0:00:15]} 1-0


[Site "https://www.chess.com"]

[Event "Titled Tuesday Blitz February 07 Late 2023"]
[White "Fernandez Siles, Luis"]
[Black "Veiga, Jose Francisco R P Neves"]
[WhiteFideId "2209420"]
[BlackFideId "1930087"]
[WhiteElo "2218"]
[BlackElo "2406"]
[Result "0-1"]
[Round "05"]
[TimeControl "180+2"]
[Date "2023.02.07"]
[WhiteClock "0:00:09"]
[BlackClock "0:00:06"]

1. d4 {[%clk 0:03:00]}  Nf6 {[%clk 0:02:29]} 2. c4 {[%clk 0:02:59]}  e6 {[%clk 0:02:29]} 3. Nc3 {[%clk 0:02:59]}  Bb4 {[%clk 0:02:24]} 4. e3 {[%clk 0:02:58]}  O-O {[%clk 0:02:23]} 5. Ne2 {[%clk 0:02:58]}  d5 {[%clk 0:02:20]} 6. a3 {[%clk 0:02:58]}  Be7 {[%clk 0:02:13]} 7. cxd5 {[%clk 0:02:56]}  exd5 {[%clk 0:02:14]} 8. g3 {[%clk 0:02:57]}  h5 {[%clk 0:02:10]} 9. h3 {[%clk 0:02:53]}  c6 {[%clk 0:02:10]} 10. Bg2 {[%clk 0:02:52]}  Bf5 {[%clk 0:02:08]} 11. Nf4 {[%clk 0:02:40]}  h4 {[%clk 0:02:08]} 12. g4 {[%clk 0:02:38]}  Bh7 {[%clk 0:02:08]} 13. O-O {[%clk 0:02:18]}  Nbd7 {[%clk 0:02:07]} 14. Nd3 {[%clk 0:02:11]}  Ne8 {[%clk 0:02:04]} 15. f4 {[%clk 0:02:10]}  f5 {[%clk 0:01:55]} 16. g5 {[%clk 0:01:56]}  Bg6 {[%clk 0:01:53]} 17. Qe1 {[%clk 0:01:47]}  Nd6 {[%clk 0:01:49]} 18. Qxh4 {[%clk 0:01:42]}  Ne4 {[%clk 0:01:49]} 19. Nxe4 {[%clk 0:01:25]}  fxe4 {[%clk 0:01:50]} 20. Ne5 {[%clk 0:01:25]}  Nxe5 {[%clk 0:01:50]} 21. dxe5 {[%clk 0:01:24]}  Qb6 {[%clk 0:01:35]} 22. Bd2 {[%clk 0:00:58]}  Qxb2 {[%clk 0:01:32]} 23. Qf2 {[%clk 0:00:57]}  Qb6 {[%clk 0:00:59]} 24. Rab1 {[%clk 0:00:57]}  Qc7 {[%clk 0:00:59]} 25. h4 {[%clk 0:00:53]}  Bf5 {[%clk 0:00:58]} 26. h5 {[%clk 0:00:53]}  g6 {[%clk 0:00:56]} 27. Qh4 {[%clk 0:00:41]}  Kg7 {[%clk 0:00:53]} 28. Bh3 {[%clk 0:00:37]}  Bxh3 {[%clk 0:00:47]} 29. h6+ {[%clk 0:00:37]}  Kh7 {[%clk 0:00:44]} 30. Qxh3 {[%clk 0:00:38]}  Rf5 {[%clk 0:00:44]} 31. Kf2 {[%clk 0:00:33]}  Raf8 {[%clk 0:00:41]} 32. Kg2 {[%clk 0:00:32]}  b5 {[%clk 0:00:34]} 33. Rfc1 {[%clk 0:00:22]}  Qd7 {[%clk 0:00:21]} 34. Bb4 {[%clk 0:00:19]}  Bxb4 {[%clk 0:00:06]} 35. axb4 {[%clk 0:00:20]}  d4 {[%clk 0:00:07]} 36. exd4 {[%clk 0:00:19]}  Qxd4 {[%clk 0:00:06]} 37. Rd1 {[%clk 0:00:17]}  Qc4 {[%clk 0:00:02]} 38. Rd7+ {[%clk 0:00:17]}  R8f7 {[%clk 0:00:03]} 39. Rbd1 {[%clk 0:00:17]}  Rxf4 {[%clk 0:00:02]} 40. Rxf7+ {[%clk 0:00:16]}  Rxf7 {[%clk 0:00:03]} 41. Rd7 {[%clk 0:00:17]}  Qe2+ {[%clk 0:00:03]} 42. Kg1 {[%clk 0:00:15]}  Qe1+ {[%clk 0:00:03]} 43. Kg2 {[%clk 0:00:16]}  Qf1+ {[%clk 0:00:03]} 44. Kg3 {[%clk 0:00:10]}  Qxh3+ {[%clk 0:00:04]} 45. Kxh3 {[%clk 0:00:09]}  Rxd7 {[%clk 0:00:05]} 46. Kg4 {[%clk 0:00:10]}  Rf7 {[%clk 0:00:06]} 47. e6 {[%clk 0:00:09]}  Re7 {[%clk 0:00:06]} 0-1


[Site "https://www.chess.com"]

[Event "Titled Tuesday Blitz February 07 Late 2023"]
[White "Filgueira, Hernan"]
[Black "Miszler, Levente"]
[WhiteFideId "101770"]
[BlackFideId "763276"]
[WhiteElo "2283"]
[BlackElo "2271"]
[Result "1-0"]
[Round "05"]
[TimeControl "180+2"]
[Date "2023.02.07"]
[WhiteClock "0:00:16"]
[BlackClock "0:00:17"]

1. e4 {[%clk 0:02:59]}  e6 {[%clk 0:02:59]} 2. d4 {[%clk 0:02:58]}  d5 {[%clk 0:02:59]} 3. Nc3 {[%clk 0:02:59]}  Nf6 {[%clk 0:02:52]} 4. e5 {[%clk 0:02:58]}  Nfd7 {[%clk 0:02:52]} 5. Nf3 {[%clk 0:02:59]}  c5 {[%clk 0:02:52]} 6. dxc5 {[%clk 0:02:59]}  Nc6 {[%clk 0:02:51]} 7. Bf4 {[%clk 0:02:58]}  Bxc5 {[%clk 0:02:50]} 8. Bd3 {[%clk 0:02:58]}  f6 {[%clk 0:02:45]} 9. exf6 {[%clk 0:02:56]}  Nxf6 {[%clk 0:02:46]} 10. O-O {[%clk 0:02:53]}  O-O {[%clk 0:02:46]} 11. Bg3 {[%clk 0:02:53]}  Bd7 {[%clk 0:02:31]} 12. Ne5 {[%clk 0:02:45]}  Nxe5 {[%clk 0:02:30]} 13. Bxe5 {[%clk 0:02:44]}  Be8 {[%clk 0:02:27]} 14. Kh1 {[%clk 0:02:31]}  Bd6 {[%clk 0:02:24]} 15. Qe2 {[%clk 0:02:22]}  Bh5 {[%clk 0:02:10]} 16. f3 {[%clk 0:02:21]}  Ne4 {[%clk 0:01:54]} 17. Bxd6 {[%clk 0:02:09]}  Nxd6 {[%clk 0:01:54]} 18. Qxe6+ {[%clk 0:02:01]}  Bf7 {[%clk 0:01:54]} 19. Qh3 {[%clk 0:01:57]}  g6 {[%clk 0:01:49]} 20. a4 {[%clk 0:01:24]}  Qb6 {[%clk 0:01:46]} 21. b3 {[%clk 0:01:12]}  Rac8 {[%clk 0:01:41]} 22. Ne2 {[%clk 0:01:09]}  Rfe8 {[%clk 0:01:30]} 23. a5 {[%clk 0:01:03]}  Qb4 {[%clk 0:01:28]} 24. Qg4 {[%clk 0:00:36]}  Qd2 {[%clk 0:01:24]} 25. Ng3 {[%clk 0:00:32]}  Be6 {[%clk 0:01:04]} 26. Qh4 {[%clk 0:00:25]}  Bf7 {[%clk 0:00:52]} 27. a6 {[%clk 0:00:20]}  bxa6 {[%clk 0:00:52]} 28. Rxa6 {[%clk 0:00:18]}  Re1 {[%clk 0:00:51]} 29. Rxd6 {[%clk 0:00:16]}  Qf2 {[%clk 0:00:36]} 30. Rd8+ {[%clk 0:00:14]}  Rxd8 {[%clk 0:00:34]} 31. Qxd8+ {[%clk 0:00:13]}  Kg7 {[%clk 0:00:35]} 32. Rxe1 {[%clk 0:00:13]}  Qxe1+ {[%clk 0:00:35]} 33. Nf1 {[%clk 0:00:13]}  h5 {[%clk 0:00:28]} 34. Qg5 {[%clk 0:00:11]}  a5 {[%clk 0:00:24]} 35. Qd2 {[%clk 0:00:11]}  Qa1 {[%clk 0:00:24]} 36. Kg1 {[%clk 0:00:12]}  Qd4+ {[%clk 0:00:23]} 37. Qf2 {[%clk 0:00:13]}  Qa1 {[%clk 0:00:23]} 38. f4 {[%clk 0:00:13]}  a4 {[%clk 0:00:22]} 39. bxa4 {[%clk 0:00:12]}  Qxa4 {[%clk 0:00:23]} 40. f5 {[%clk 0:00:12]}  gxf5 {[%clk 0:00:24]} 41. Qxf5 {[%clk 0:00:12]}  Qa7+ {[%clk 0:00:25]} 42. Qf2 {[%clk 0:00:11]}  Qa4 {[%clk 0:00:21]} 43. h3 {[%clk 0:00:12]}  Qa1 {[%clk 0:00:19]} 44. Kh2 {[%clk 0:00:11]}  Qe5+ {[%clk 0:00:19]} 45. Qg3+ {[%clk 0:00:12]}  Qxg3+ {[%clk 0:00:19]} 46. Nxg3 {[%clk 0:00:12]}  Kf6 {[%clk 0:00:20]} 47. Ne2 {[%clk 0:00:12]}  Ke5 {[%clk 0:00:20]} 48. g3 {[%clk 0:00:13]}  Be6 {[%clk 0:00:20]} 49. Kg2 {[%clk 0:00:14]}  d4 {[%clk 0:00:19]} 50. Kf2 {[%clk 0:00:13]}  Bd5 {[%clk 0:00:19]} 51. h4 {[%clk 0:00:14]}  Be6 {[%clk 0:00:20]} 52. Nf4 {[%clk 0:00:14]}  Bg4 {[%clk 0:00:20]} 53. Ng6+ {[%clk 0:00:14]}  Kf6 {[%clk 0:00:19]} 54. Nf4 {[%clk 0:00:14]}  Ke5 {[%clk 0:00:19]} 55. Be2 {[%clk 0:00:15]}  Bf5 {[%clk 0:00:19]} 56. Nd3+ {[%clk 0:00:16]}  Kf6 {[%clk 0:00:17]} 57. Bxh5 {[%clk 0:00:16]} 1-0


[Site "https://www.chess.com"]

[Event "Titled Tuesday Blitz February 07 Late 2023"]
[White "Rego, Pedro Filipe"]
[Black "Dauner, Benedikt"]
[WhiteFideId "1904310"]
[BlackFideId "16225899"]
[WhiteElo "2312"]
[BlackElo "2400"]
[Result "1-0"]
[Round "05"]
[TimeControl "180+2"]
[Date "2023.02.07"]
[WhiteClock "0:00:08"]
[BlackClock "0:00:17"]

1. c4 {[%clk 0:02:59]}  c5 {[%clk 0:02:57]} 2. g3 {[%clk 0:02:58]}  g6 {[%clk 0:02:57]} 3. Bg2 {[%clk 0:02:58]}  Bg7 {[%clk 0:02:58]} 4. Nc3 {[%clk 0:02:58]}  Nc6 {[%clk 0:02:59]} 5. e3 {[%clk 0:02:55]}  d6 {[%clk 0:02:56]} 6. Nge2 {[%clk 0:02:55]}  Qd7 {[%clk 0:02:55]} 7. d4 {[%clk 0:02:50]}  b6 {[%clk 0:02:53]} 8. O-O {[%clk 0:02:46]}  Bb7 {[%clk 0:02:53]} 9. b3 {[%clk 0:02:45]}  e6 {[%clk 0:02:51]} 10. Bb2 {[%clk 0:02:44]}  Nge7 {[%clk 0:02:52]} 11. dxc5 {[%clk 0:02:23]}  dxc5 {[%clk 0:02:41]} 12. Qxd7+ {[%clk 0:02:16]}  Kxd7 {[%clk 0:02:42]} 13. Rfd1+ {[%clk 0:02:16]}  Ke8 {[%clk 0:02:42]} 14. Rab1 {[%clk 0:02:12]}  Kf8 {[%clk 0:01:48]} 15. Rd7 {[%clk 0:02:01]}  Rb8 {[%clk 0:01:40]} 16. Nb5 {[%clk 0:01:44]}  Bxb2 {[%clk 0:01:35]} 17. Rxb2 {[%clk 0:01:40]}  Kg7 {[%clk 0:01:23]} 18. Nxa7 {[%clk 0:01:20]}  Rhd8 {[%clk 0:01:10]} 19. Rbd2 {[%clk 0:01:14]}  Nd4 {[%clk 0:00:38]} 20. Rxb7 {[%clk 0:01:01]}  Rxb7 {[%clk 0:00:34]} 21. Nxd4 {[%clk 0:00:43]}  cxd4 {[%clk 0:00:13]} 22. Bxb7 {[%clk 0:00:40]}  dxe3 {[%clk 0:00:13]} 23. Re2 {[%clk 0:00:31]}  exf2+ {[%clk 0:00:13]} 24. Kxf2 {[%clk 0:00:31]}  Rd7 {[%clk 0:00:13]} 25. Nc8 {[%clk 0:00:21]}  Rxb7 {[%clk 0:00:12]} 26. Nxe7 {[%clk 0:00:21]}  Rxe7 {[%clk 0:00:13]} 27. a4 {[%clk 0:00:20]}  Rd7 {[%clk 0:00:12]} 28. Rb2 {[%clk 0:00:17]}  Rd3 {[%clk 0:00:10]} 29. Ke2 {[%clk 0:00:14]}  Rc3 {[%clk 0:00:10]} 30. Kd2 {[%clk 0:00:11]}  Rf3 {[%clk 0:00:10]} 31. b4 {[%clk 0:00:11]}  Ra3 {[%clk 0:00:09]} 32. c5 {[%clk 0:00:09]}  bxc5 {[%clk 0:00:08]} 33. b5 {[%clk 0:00:06]}  Rxa4 {[%clk 0:00:06]} 34. b6 {[%clk 0:00:06]}  Ra8 {[%clk 0:00:06]} 35. b7 {[%clk 0:00:07]}  Rb8 {[%clk 0:00:06]} 36. Kd3 {[%clk 0:00:07]}  e5 {[%clk 0:00:06]} 37. Kc4 {[%clk 0:00:07]}  f5 {[%clk 0:00:07]} 38. Kxc5 {[%clk 0:00:07]}  e4 {[%clk 0:00:07]} 39. Kd6 {[%clk 0:00:06]}  Kf6 {[%clk 0:00:07]} 40. Kc7 {[%clk 0:00:07]}  Re8 {[%clk 0:00:07]} 41. b8=Q {[%clk 0:00:05]}  Rxb8 {[%clk 0:00:07]} 42. Rxb8 {[%clk 0:00:05]}  g5 {[%clk 0:00:07]} 43. Kd6 {[%clk 0:00:05]}  f4 {[%clk 0:00:07]} 44. Rf8+ {[%clk 0:00:03]}  Kg6 {[%clk 0:00:06]} 45. gxf4 {[%clk 0:00:03]}  gxf4 {[%clk 0:00:07]} 46. Rxf4 {[%clk 0:00:03]}  e3 {[%clk 0:00:08]} 47. Re4 {[%clk 0:00:04]}  Kg5 {[%clk 0:00:09]} 48. Rxe3 {[%clk 0:00:04]}  h5 {[%clk 0:00:10]} 49. Rg3+ {[%clk 0:00:04]}  Kh4 {[%clk 0:00:10]} 50. Rc3 {[%clk 0:00:02]}  Kg4 {[%clk 0:00:10]} 51. Ke5 {[%clk 0:00:03]}  h4 {[%clk 0:00:11]} 52. Rc4+ {[%clk 0:00:03]}  Kh3 {[%clk 0:00:11]} 53. Rc2 {[%clk 0:00:04]}  Kg4 {[%clk 0:00:10]} 54. Ke4 {[%clk 0:00:05]}  Kh3 {[%clk 0:00:11]} 55. Ke3 {[%clk 0:00:06]}  Kg4 {[%clk 0:00:12]} 56. Kf2 {[%clk 0:00:06]}  Kh3 {[%clk 0:00:13]} 57. Kg1 {[%clk 0:00:07]}  Kg4 {[%clk 0:00:14]} 58. Rc3 {[%clk 0:00:08]}  h3 {[%clk 0:00:14]} 59. Kf2 {[%clk 0:00:08]}  Kh4 {[%clk 0:00:15]} 60. Rg3 {[%clk 0:00:08]}  Kh5 {[%clk 0:00:15]} 61. Kf3 {[%clk 0:00:09]}  Kh4 {[%clk 0:00:15]} 62. Kf4 {[%clk 0:00:09]}  Kh5 {[%clk 0:00:16]} 63. Kf5 {[%clk 0:00:08]}  Kh4 {[%clk 0:00:17]} 64. Rf3 {[%clk 0:00:08]} 1-0


[Site "https://www.chess.com"]

[Event "Titled Tuesday Blitz February 07 Late 2023"]
[White "Prem, Pranav"]
[Black "Bernat, David"]
[WhiteFideId "30901057"]
[BlackFideId "2099225"]
[WhiteElo "2061"]
[BlackElo "1862"]
[Result "1-0"]
[Round "05"]
[TimeControl "180+2"]
[Date "2023.02.07"]
[WhiteClock "0:01:35"]
[BlackClock "0:01:41"]

1. d4 {[%clk 0:03:00]}  d5 {[%clk 0:02:56]} 2. c4 {[%clk 0:03:00]}  e5 {[%clk 0:02:57]} 3. dxe5 {[%clk 0:02:57]}  d4 {[%clk 0:02:58]} 4. Nf3 {[%clk 0:02:54]}  Nc6 {[%clk 0:02:57]} 5. a3 {[%clk 0:02:54]}  Nge7 {[%clk 0:02:56]} 6. b4 {[%clk 0:02:52]}  Ng6 {[%clk 0:02:55]} 7. Bb2 {[%clk 0:02:49]}  Ngxe5 {[%clk 0:02:53]} 8. Nxe5 {[%clk 0:02:46]}  Nxe5 {[%clk 0:02:54]} 9. e3 {[%clk 0:02:46]}  Be6 {[%clk 0:02:48]} 10. Bxd4 {[%clk 0:02:32]}  Nxc4 {[%clk 0:02:42]} 11. Qc2 {[%clk 0:02:31]}  b5 {[%clk 0:02:30]} 12. Nc3 {[%clk 0:02:12]}  c6 {[%clk 0:02:15]} 13. Bd3 {[%clk 0:01:57]}  a5 {[%clk 0:02:09]} 14. O-O {[%clk 0:01:53]}  axb4 {[%clk 0:02:02]} 15. axb4 {[%clk 0:01:52]}  Bxb4 {[%clk 0:01:59]} 16. Bxc4 {[%clk 0:01:51]}  Bxc4 {[%clk 0:01:59]} 17. Qe4+ {[%clk 0:01:47]}  Kf8 {[%clk 0:01:49]} 18. Qxc6 {[%clk 0:01:35]}  Rxa1 {[%clk 0:01:45]} 19. Rxa1 {[%clk 0:01:36]}  Kg8 {[%clk 0:01:41]} 20. Ra8 {[%clk 0:01:35]} 1-0


[Site "https://www.chess.com"]